[Event "Titled Tuesday Blitz April 26 Late 2022"]
[White "Smail, Benedict"]
[Black "Balint, Vilmos"]
[WhiteFideId "2050480"]
[BlackFideId "718050"]
[WhiteElo "2070"]
[BlackElo "2059"]
[Result "1/2-1/2"]
[Round "05"]
[TimeControl "180+1"]
[Date "2022.04.26"]
[WhiteClock "0:00:07"]
[BlackClock "0:00:49"]

1. d4 {[%clk 0:03:00]}  f5 {[%clk 0:02:39]} 2. g3 {[%clk 0:03:00]}  Nf6 {[%clk 0:02:39]} 3. Bg2 {[%clk 0:03:00]}  g6 {[%clk 0:02:40]} 4. Nf3 {[%clk 0:03:00]}  Bg7 {[%clk 0:02:40]} 5. O-O {[%clk 0:03:00]}  O-O {[%clk 0:02:41]} 6. c4 {[%clk 0:02:59]}  d6 {[%clk 0:02:42]} 7. d5 {[%clk 0:02:59]}  Qe8 {[%clk 0:02:42]} 8. Nc3 {[%clk 0:02:58]}  e5 {[%clk 0:02:42]} 9. dxe6 {[%clk 0:02:58]}  Bxe6 {[%clk 0:02:43]} 10. Nd5 {[%clk 0:02:50]}  Nxd5 {[%clk 0:02:42]} 11. cxd5 {[%clk 0:02:49]}  Bd7 {[%clk 0:02:42]} 12. Bd2 {[%clk 0:02:37]}  a5 {[%clk 0:02:42]} 13. Bc3 {[%clk 0:02:37]}  Qe7 {[%clk 0:02:40]} 14. Re1 {[%clk 0:02:32]}  Bxc3 {[%clk 0:02:39]} 15. bxc3 {[%clk 0:02:32]}  Na6 {[%clk 0:02:40]} 16. Qd4 {[%clk 0:02:29]}  Nc5 {[%clk 0:02:39]} 17. Nd2 {[%clk 0:02:21]}  Qf6 {[%clk 0:02:35]} 18. Rab1 {[%clk 0:01:37]}  Rae8 {[%clk 0:02:32]} 19. Qxf6 {[%clk 0:01:19]}  Rxf6 {[%clk 0:02:32]} 20. e4 {[%clk 0:01:20]}  f4 {[%clk 0:02:32]} 21. f3 {[%clk 0:01:10]}  fxg3 {[%clk 0:02:29]} 22. hxg3 {[%clk 0:01:09]}  b6 {[%clk 0:02:26]} 23. Nc4 {[%clk 0:01:05]}  Rff8 {[%clk 0:02:13]} 24. Re3 {[%clk 0:01:02]}  g5 {[%clk 0:01:53]} 25. e5 {[%clk 0:00:49]}  b5 {[%clk 0:01:48]} 26. Nxa5 {[%clk 0:00:40]}  dxe5 {[%clk 0:01:41]} 27. Nb3 {[%clk 0:00:35]}  Na4 {[%clk 0:01:38]} 28. Rbe1 {[%clk 0:00:34]}  Bf5 {[%clk 0:01:29]} 29. Rxe5 {[%clk 0:00:33]}  Rxe5 {[%clk 0:01:28]} 30. Rxe5 {[%clk 0:00:34]}  Nxc3 {[%clk 0:01:27]} 31. Nd4 {[%clk 0:00:28]}  Bg6 {[%clk 0:01:19]} 32. Rxg5 {[%clk 0:00:26]}  Nxa2 {[%clk 0:01:20]} 33. Nxb5 {[%clk 0:00:25]}  Rc8 {[%clk 0:01:13]} 34. f4 {[%clk 0:00:23]}  Kf7 {[%clk 0:01:12]} 35. Bh3 {[%clk 0:00:23]}  Rb8 {[%clk 0:01:12]} 36. Nxc7 {[%clk 0:00:22]}  Nc3 {[%clk 0:01:06]} 37. Be6+ {[%clk 0:00:17]}  Kf6 {[%clk 0:01:06]} 38. Rg4 {[%clk 0:00:14]}  Rb2 {[%clk 0:01:02]} 39. Na6 {[%clk 0:00:10]}  Be4 {[%clk 0:00:59]} 40. Rh4 {[%clk 0:00:08]}  Rg2+ {[%clk 0:00:59]} 41. Kf1 {[%clk 0:00:08]}  Ne2 {[%clk 0:00:58]} 42. Ke1 {[%clk 0:00:08]}  Nxg3 {[%clk 0:00:57]} 43. Nc5 {[%clk 0:00:06]}  Re2+ {[%clk 0:00:56]} 44. Kd1 {[%clk 0:00:06]}  Bf3 {[%clk 0:00:56]} 45. Kc1 {[%clk 0:00:05]}  Rf2 {[%clk 0:00:52]} 46. Rxh7 {[%clk 0:00:05]}  Ne2+ {[%clk 0:00:52]} 47. Kd2 {[%clk 0:00:05]}  Nxf4+ {[%clk 0:00:52]} 48. Ke3 {[%clk 0:00:06]}  Be4 {[%clk 0:00:51]} 49. Kxf2 {[%clk 0:00:06]}  Bxh7 {[%clk 0:00:51]} 50. Kf3 {[%clk 0:00:06]}  Nxe6 {[%clk 0:00:50]} 51. dxe6 {[%clk 0:00:07]}  Bg8 {[%clk 0:00:50]} 52. Kf4 {[%clk 0:00:07]}  Bxe6 {[%clk 0:00:49]} 1/2-1/2


[Site "https://www.chess.com"]

[Event "Titled Tuesday Blitz April 26 Late 2022"]
[White "Song, Guannan Terry"]
[Black "Ansh M Shah"]
[WhiteFideId "2614189"]
[BlackFideId "25033379"]
[WhiteElo "2115"]
[BlackElo "1819"]
[Result "1/2-1/2"]
[Round "05"]
[TimeControl "180+1"]
[Date "2022.04.26"]
[WhiteClock "0:00:08"]
[BlackClock "0:00:06"]

1. d4 {[%clk 0:01:29]}  Nf6 {[%clk 0:02:58]} 2. Bg5 {[%clk 0:01:28]}  d5 {[%clk 0:02:57]} 3. Bxf6 {[%clk 0:01:28]}  exf6 {[%clk 0:02:58]} 4. e3 {[%clk 0:01:28]}  Bd6 {[%clk 0:02:57]} 5. c4 {[%clk 0:01:28]}  dxc4 {[%clk 0:02:58]} 6. Bxc4 {[%clk 0:01:29]}  O-O {[%clk 0:02:58]} 7. Nc3 {[%clk 0:01:30]}  b6 {[%clk 0:02:55]} 8. Nf3 {[%clk 0:01:28]}  Bb7 {[%clk 0:02:56]} 9. O-O {[%clk 0:01:25]}  a6 {[%clk 0:02:56]} 10. Rc1 {[%clk 0:01:24]}  b5 {[%clk 0:02:55]} 11. Bd3 {[%clk 0:01:24]}  Nd7 {[%clk 0:02:51]} 12. Qc2 {[%clk 0:01:14]}  g6 {[%clk 0:02:44]} 13. Ne4 {[%clk 0:01:14]}  Bxe4 {[%clk 0:02:37]} 14. Bxe4 {[%clk 0:01:05]}  Rb8 {[%clk 0:02:37]} 15. Nd2 {[%clk 0:00:56]}  Qe7 {[%clk 0:02:31]} 16. Bf3 {[%clk 0:00:49]}  Rfc8 {[%clk 0:02:27]} 17. Ne4 {[%clk 0:00:48]}  Bb4 {[%clk 0:02:04]} 18. a3 {[%clk 0:00:41]}  Ba5 {[%clk 0:01:43]} 19. b4 {[%clk 0:00:39]}  Bb6 {[%clk 0:01:30]} 20. Nc5 {[%clk 0:00:37]}  Bxc5 {[%clk 0:01:29]} 21. dxc5 {[%clk 0:00:38]}  Ne5 {[%clk 0:01:26]} 22. Be2 {[%clk 0:00:34]}  c6 {[%clk 0:01:21]} 23. Rfd1 {[%clk 0:00:27]}  Rd8 {[%clk 0:01:20]} 24. Rd4 {[%clk 0:00:25]}  f5 {[%clk 0:00:53]} 25. Rcd1 {[%clk 0:00:23]}  Rxd4 {[%clk 0:00:54]} 26. exd4 {[%clk 0:00:21]}  Nd7 {[%clk 0:00:54]} 27. Bf3 {[%clk 0:00:21]}  Rc8 {[%clk 0:00:51]} 28. d5 {[%clk 0:00:21]}  cxd5 {[%clk 0:00:51]} 29. Bxd5 {[%clk 0:00:21]}  Nf6 {[%clk 0:00:51]} 30. Bf3 {[%clk 0:00:22]}  Kg7 {[%clk 0:00:48]} 31. Qd2 {[%clk 0:00:22]}  Ne4 {[%clk 0:00:21]} 32. Qd4+ {[%clk 0:00:21]}  Kg8 {[%clk 0:00:05]} 33. g3 {[%clk 0:00:18]}  Nf6 {[%clk 0:00:03]} 34. Kg2 {[%clk 0:00:17]}  h5 {[%clk 0:00:02]} 35. Qd6 {[%clk 0:00:17]}  Rc7 {[%clk 0:00:03]} 36. Qxa6 {[%clk 0:00:16]}  g5 {[%clk 0:00:03]} 37. Qd6 {[%clk 0:00:15]}  g4 {[%clk 0:00:03]} 38. Ba8 {[%clk 0:00:13]}  Qe2 {[%clk 0:00:02]} 39. Qd2 {[%clk 0:00:10]}  Qe7 {[%clk 0:00:01]} 40. Qd8+ {[%clk 0:00:10]}  Qxd8 {[%clk 0:00:01]} 41. Rxd8+ {[%clk 0:00:09]}  Kg7 {[%clk 0:00:02]} 42. Rb8 {[%clk 0:00:08]}  Nd7 {[%clk 0:00:02]} 43. Bd5 {[%clk 0:00:08]}  Nxb8 {[%clk 0:00:02]} 44. Bb3 {[%clk 0:00:08]}  Nc6 {[%clk 0:00:03]} 45. Bc2 {[%clk 0:00:08]}  Nd4 {[%clk 0:00:03]} 46. Bd3 {[%clk 0:00:08]}  Nb3 {[%clk 0:00:03]} 47. Bxb5 {[%clk 0:00:08]}  Nd4 {[%clk 0:00:03]} 48. Bc4 {[%clk 0:00:08]}  Nc2 {[%clk 0:00:04]} 49. Bd3 {[%clk 0:00:05]}  Nxa3 {[%clk 0:00:04]} 50. Kf1 {[%clk 0:00:03]}  Rd7 {[%clk 0:00:03]} 51. Ke2 {[%clk 0:00:04]}  Rb7 {[%clk 0:00:02]} 52. c6 {[%clk 0:00:02]}  Rc7 {[%clk 0:00:02]} 53. b5 {[%clk 0:00:01]}  Nxb5 {[%clk 0:00:02]} 54. Bxb5 {[%clk 0:00:02]}  Kf6 {[%clk 0:00:03]} 55. Kd3 {[%clk 0:00:02]}  Ke5 {[%clk 0:00:04]} 56. Kc4 {[%clk 0:00:03]}  Kd6 {[%clk 0:00:04]} 57. Kd4 {[%clk 0:00:03]}  f6 {[%clk 0:00:05]} 58. Ba4 {[%clk 0:00:03]}  Rxc6 {[%clk 0:00:04]} 59. Bxc6 {[%clk 0:00:03]}  Kxc6 {[%clk 0:00:05]} 60. Ke3 {[%clk 0:00:03]}  Kd6 {[%clk 0:00:05]} 61. Kf4 {[%clk 0:00:04]}  Ke6 {[%clk 0:00:05]} 62. Ke3 {[%clk 0:00:05]}  Ke5 {[%clk 0:00:06]} 63. f4+ {[%clk 0:00:03]}  gxf3 {[%clk 0:00:04]} 64. Kxf3 {[%clk 0:00:04]}  Kd5 {[%clk 0:00:03]} 65. Kf4 {[%clk 0:00:04]}  Ke6 {[%clk 0:00:04]} 66. Ke3 {[%clk 0:00:05]}  Ke5 {[%clk 0:00:04]} 67. Kf3 {[%clk 0:00:06]}  Kd5 {[%clk 0:00:03]} 68. Kf4 {[%clk 0:00:07]}  Ke6 {[%clk 0:00:04]} 69. Ke3 {[%clk 0:00:07]}  Kf7 {[%clk 0:00:04]} 70. Kf4 {[%clk 0:00:08]}  Kg6 {[%clk 0:00:05]} 71. h4 {[%clk 0:00:08]}  Kg7 {[%clk 0:00:04]} 72. Kxf5 {[%clk 0:00:08]}  Kf7 {[%clk 0:00:04]} 73. Kf4 {[%clk 0:00:09]}  Ke6 {[%clk 0:00:04]} 74. Ke4 {[%clk 0:00:09]}  Ke7 {[%clk 0:00:04]} 75. Kf5 {[%clk 0:00:10]}  Kf7 {[%clk 0:00:05]} 76. Kf4 {[%clk 0:00:10]}  Ke6 {[%clk 0:00:05]} 77. Ke4 {[%clk 0:00:10]}  Ke7 {[%clk 0:00:06]} 78. Kd5 {[%clk 0:00:09]}  Kd7 {[%clk 0:00:05]} 79. Kd4 {[%clk 0:00:07]}  Ke6 {[%clk 0:00:06]} 80. Ke4 {[%clk 0:00:08]} 1/2-1/2


[Site "https://www.chess.com"]

[Event "Titled Tuesday Blitz April 26 Late 2022"]
[White "Taichman, Ori"]
[Black "Rustemov, Alexander"]
[WhiteFideId "2804069"]
[BlackFideId "4119002"]
[WhiteElo "2227"]
[BlackElo "2865"]
[Result "0-1"]
[Round "05"]
[TimeControl "180+1"]
[Date "2022.04.26"]
[WhiteClock "0:00:22"]
[BlackClock "0:01:23"]

1. e4 {[%clk 0:02:58]}  e6 {[%clk 0:02:59]} 2. d4 {[%clk 0:02:57]}  d5 {[%clk 0:03:00]} 3. Nc3 {[%clk 0:02:58]}  Bb4 {[%clk 0:03:00]} 4. e5 {[%clk 0:02:55]}  c5 {[%clk 0:03:00]} 5. Bd2 {[%clk 0:02:55]}  Bd7 {[%clk 0:02:53]} 6. Qg4 {[%clk 0:02:45]}  Ne7 {[%clk 0:02:47]} 7. dxc5 {[%clk 0:02:45]}  Nbc6 {[%clk 0:02:36]} 8. Qxg7 {[%clk 0:02:38]}  Rg8 {[%clk 0:02:36]} 9. Qxh7 {[%clk 0:02:39]}  Nxe5 {[%clk 0:02:16]} 10. O-O-O {[%clk 0:02:21]}  Qc7 {[%clk 0:01:48]} 11. Nb5 {[%clk 0:02:00]}  Bxd2+ {[%clk 0:01:44]} 12. Rxd2 {[%clk 0:02:01]}  Qxc5 {[%clk 0:01:43]} 13. Nd4 {[%clk 0:01:30]}  N5g6 {[%clk 0:01:43]} 14. h4 {[%clk 0:01:17]}  e5 {[%clk 0:01:38]} 15. Nb3 {[%clk 0:01:13]}  Qb6 {[%clk 0:01:31]} 16. h5 {[%clk 0:00:31]}  Nf4 {[%clk 0:01:31]} 17. h6 {[%clk 0:00:22]}  Qf6 {[%clk 0:01:23]} 0-1


[Site "https://www.chess.com"]

[Event "Titled Tuesday Blitz April 26 Late 2022"]
[White "Tari, Aryan"]
[Black "Deac, Bogdan-Daniel"]
[WhiteFideId "1510045"]
[BlackFideId "1226380"]
[WhiteElo "2567"]
[BlackElo "2648"]
[Result "1/2-1/2"]
[Round "05"]
[TimeControl "180+1"]
[Date "2022.04.26"]
[WhiteClock "0:00:24"]
[BlackClock "0:00:17"]

1. e4 {[%clk 0:03:00]}  e5 {[%clk 0:02:59]} 2. Nf3 {[%clk 0:03:00]}  Nc6 {[%clk 0:03:00]} 3. d4 {[%clk 0:02:58]}  exd4 {[%clk 0:03:00]} 4. Nxd4 {[%clk 0:02:58]}  Nf6 {[%clk 0:03:00]} 5. Nxc6 {[%clk 0:02:58]}  bxc6 {[%clk 0:03:01]} 6. e5 {[%clk 0:02:58]}  Qe7 {[%clk 0:03:02]} 7. Qe2 {[%clk 0:02:59]}  Nd5 {[%clk 0:03:02]} 8. h4 {[%clk 0:02:59]}  Qe6 {[%clk 0:02:58]} 9. Nd2 {[%clk 0:02:35]}  d6 {[%clk 0:02:54]} 10. exd6 {[%clk 0:02:35]}  Bxd6 {[%clk 0:02:55]} 11. Nc4 {[%clk 0:02:32]}  Bc5 {[%clk 0:02:55]} 12. a3 {[%clk 0:02:28]}  O-O {[%clk 0:02:55]} 13. Qxe6 {[%clk 0:02:22]}  Bxe6 {[%clk 0:02:56]} 14. Bd3 {[%clk 0:02:22]}  a5 {[%clk 0:02:55]} 15. O-O {[%clk 0:02:19]}  Rfb8 {[%clk 0:02:54]} 16. Bd2 {[%clk 0:02:11]}  a4 {[%clk 0:02:49]} 17. Rae1 {[%clk 0:02:12]}  Bd4 {[%clk 0:02:44]} 18. Bc1 {[%clk 0:02:01]}  Nf6 {[%clk 0:02:40]} 19. Ne5 {[%clk 0:01:57]}  Bxb2 {[%clk 0:02:18]} 20. Nxc6 {[%clk 0:01:57]}  Bxc1 {[%clk 0:02:16]} 21. Rxc1 {[%clk 0:01:51]}  Rb6 {[%clk 0:02:12]} 22. Nd4 {[%clk 0:01:49]}  Bd7 {[%clk 0:01:57]} 23. Rfe1 {[%clk 0:01:43]}  Kf8 {[%clk 0:01:44]} 24. Nf3 {[%clk 0:01:38]}  Rab8 {[%clk 0:01:32]} 25. Ng5 {[%clk 0:01:22]}  h6 {[%clk 0:01:13]} 26. Ne4 {[%clk 0:01:22]}  Nxe4 {[%clk 0:01:13]} 27. Rxe4 {[%clk 0:01:13]}  Rb1 {[%clk 0:01:11]} 28. Rxb1 {[%clk 0:01:09]}  Rxb1+ {[%clk 0:01:11]} 29. Kh2 {[%clk 0:01:10]}  Ra1 {[%clk 0:01:11]} 30. Rc4 {[%clk 0:01:10]}  Rxa3 {[%clk 0:01:10]} 31. Rxc7 {[%clk 0:01:11]}  Be6 {[%clk 0:01:10]} 32. Bb5 {[%clk 0:01:05]}  Ra2 {[%clk 0:00:58]} 33. c4 {[%clk 0:01:05]}  Rxf2 {[%clk 0:00:52]} 34. Ra7 {[%clk 0:00:46]}  Ra2 {[%clk 0:00:28]} 35. Rxa4 {[%clk 0:00:27]}  Rxa4 {[%clk 0:00:26]} 36. Bxa4 {[%clk 0:00:28]}  Bxc4 {[%clk 0:00:27]} 37. Kg3 {[%clk 0:00:27]}  Bd5 {[%clk 0:00:21]} 38. Kf2 {[%clk 0:00:27]}  Ke7 {[%clk 0:00:21]} 39. g3 {[%clk 0:00:26]}  Kf6 {[%clk 0:00:21]} 40. Bc2 {[%clk 0:00:26]}  Ke5 {[%clk 0:00:20]} 41. Ke3 {[%clk 0:00:26]}  f5 {[%clk 0:00:19]} 42. Bb1 {[%clk 0:00:26]}  Be4 {[%clk 0:00:15]} 43. Ba2 {[%clk 0:00:26]}  g5 {[%clk 0:00:15]} 44. hxg5 {[%clk 0:00:26]}  hxg5 {[%clk 0:00:16]} 45. Kf2 {[%clk 0:00:25]}  f4 {[%clk 0:00:16]} 46. gxf4+ {[%clk 0:00:25]}  Kxf4 {[%clk 0:00:17]} 47. Kg1 {[%clk 0:00:24]} 1/2-1/2


[Site "https://www.chess.com"]

[Event "Titled Tuesday Blitz April 26 Late 2022"]
[White "Tatarinov, Dmitry"]
[Black "Paravyan, David"]
[WhiteFideId "24160067"]
[BlackFideId "4194985"]
[WhiteElo "2302"]
[BlackElo "2569"]
[Result "0-1"]
[Round "05"]
[TimeControl "180+1"]
[Date "2022.04.26"]
[WhiteClock "0:00:16"]
[BlackClock "0:01:05"]

1. d4 {[%clk 0:03:00]}  Nf6 {[%clk 0:02:59]} 2. c4 {[%clk 0:03:01]}  g6 {[%clk 0:02:59]} 3. Nf3 {[%clk 0:03:01]}  Bg7 {[%clk 0:02:59]} 4. g3 {[%clk 0:03:01]}  c6 {[%clk 0:02:57]} 5. Bg2 {[%clk 0:03:02]}  d5 {[%clk 0:02:58]} 6. cxd5 {[%clk 0:03:01]}  cxd5 {[%clk 0:02:59]} 7. O-O {[%clk 0:03:01]}  Nc6 {[%clk 0:02:59]} 8. Ne5 {[%clk 0:03:01]}  Bd7 {[%clk 0:02:57]} 9. Nxc6 {[%clk 0:02:58]}  Bxc6 {[%clk 0:02:57]} 10. Nc3 {[%clk 0:02:57]}  O-O {[%clk 0:02:57]} 11. Bf4 {[%clk 0:02:57]}  e6 {[%clk 0:02:57]} 12. Be5 {[%clk 0:02:57]}  Bh6 {[%clk 0:02:57]} 13. e3 {[%clk 0:02:48]}  Qe7 {[%clk 0:02:57]} 14. Qf3 {[%clk 0:02:30]}  Nd7 {[%clk 0:02:56]} 15. Bf4 {[%clk 0:02:29]}  g5 {[%clk 0:02:54]} 16. Qh5 {[%clk 0:02:28]}  Kg7 {[%clk 0:02:51]} 17. Be5+ {[%clk 0:02:07]}  f6 {[%clk 0:02:51]} 18. Bc7 {[%clk 0:02:07]}  Rac8 {[%clk 0:02:50]} 19. e4 {[%clk 0:01:23]}  dxe4 {[%clk 0:02:45]} 20. d5 {[%clk 0:01:17]}  exd5 {[%clk 0:02:44]} 21. Rac1 {[%clk 0:01:16]}  Qf7 {[%clk 0:02:35]} 22. Qxf7+ {[%clk 0:01:12]}  Kxf7 {[%clk 0:02:35]} 23. Bd6 {[%clk 0:01:10]}  Rfe8 {[%clk 0:02:36]} 24. Rfd1 {[%clk 0:01:11]}  Nb6 {[%clk 0:02:31]} 25. Bc5 {[%clk 0:01:08]}  g4 {[%clk 0:02:22]} 26. Rc2 {[%clk 0:01:08]}  f5 {[%clk 0:02:21]} 27. Bxb6 {[%clk 0:01:04]}  axb6 {[%clk 0:02:22]} 28. Nxd5 {[%clk 0:01:04]}  Rcd8 {[%clk 0:02:19]} 29. Nc3 {[%clk 0:00:46]}  Rxd1+ {[%clk 0:02:17]} 30. Nxd1 {[%clk 0:00:47]}  Rd8 {[%clk 0:02:18]} 31. Ne3 {[%clk 0:00:47]}  Ke6 {[%clk 0:02:09]} 32. Bf1 {[%clk 0:00:47]}  Bf8 {[%clk 0:01:58]} 33. Bc4+ {[%clk 0:00:46]}  Ke5 {[%clk 0:01:58]} 34. Be2 {[%clk 0:00:46]}  Bc5 {[%clk 0:01:56]} 35. a3 {[%clk 0:00:45]}  Ba4 {[%clk 0:01:19]} 36. Nc4+ {[%clk 0:00:37]}  Kf6 {[%clk 0:01:18]} 37. Rc1 {[%clk 0:00:35]}  Bb3 {[%clk 0:01:15]} 38. Kf1 {[%clk 0:00:31]}  h5 {[%clk 0:01:16]} 39. Ke1 {[%clk 0:00:20]}  f4 {[%clk 0:01:16]} 40. gxf4 {[%clk 0:00:19]}  Kf5 {[%clk 0:01:16]} 41. Nd2 {[%clk 0:00:17]}  Bd5 {[%clk 0:01:15]} 42. b4 {[%clk 0:00:18]}  Bd6 {[%clk 0:01:13]} 43. Bc4 {[%clk 0:00:18]}  Bxf4 {[%clk 0:01:13]} 44. Bxd5 {[%clk 0:00:18]}  Rxd5 {[%clk 0:01:14]} 45. Rc2 {[%clk 0:00:18]}  Bxd2+ {[%clk 0:01:14]} 46. Rxd2 {[%clk 0:00:19]}  Rxd2 {[%clk 0:01:15]} 47. Kxd2 {[%clk 0:00:19]}  Kf4 {[%clk 0:01:15]} 48. Ke2 {[%clk 0:00:20]}  b5 {[%clk 0:01:15]} 49. Ke1 {[%clk 0:00:20]}  Kf3 {[%clk 0:01:14]} 50. Kf1 {[%clk 0:00:21]}  h4 {[%clk 0:01:15]} 51. Kg1 {[%clk 0:00:20]}  Ke2 {[%clk 0:01:08]} 52. Kg2 {[%clk 0:00:20]}  Ke1 {[%clk 0:01:08]} 53. Kg1 {[%clk 0:00:19]}  h3 {[%clk 0:01:08]} 54. Kh1 {[%clk 0:00:17]}  Kxf2 {[%clk 0:01:07]} 55. a4 {[%clk 0:00:17]}  e3 {[%clk 0:01:05]} 56. axb5 {[%clk 0:00:16]}  e2 {[%clk 0:01:05]} 0-1


[Site "https://www.chess.com"]

[Event "Titled Tuesday Blitz April 26 Late 2022"]
[White "Toncheva, Nadya"]
[Black "Zumsande, Martin"]
[WhiteFideId "2924056"]
[BlackFideId "4651324"]
[WhiteElo "1884"]
[BlackElo "2368"]
[Result "1-0"]
[Round "05"]
[TimeControl "180+1"]
[Date "2022.04.26"]
[WhiteClock "0:00:07"]
[BlackClock "0:00:21"]

1. e4 {[%clk 0:03:00]}  e6 {[%clk 0:02:59]} 2. d4 {[%clk 0:03:00]}  d5 {[%clk 0:02:59]} 3. Nd2 {[%clk 0:03:01]}  Be7 {[%clk 0:02:57]} 4. Bd3 {[%clk 0:03:00]}  c5 {[%clk 0:02:55]} 5. exd5 {[%clk 0:02:59]}  exd5 {[%clk 0:02:54]} 6. dxc5 {[%clk 0:02:57]}  Bxc5 {[%clk 0:02:52]} 7. Ngf3 {[%clk 0:02:57]}  Nf6 {[%clk 0:02:51]} 8. O-O {[%clk 0:02:57]}  O-O {[%clk 0:02:51]} 9. Nb3 {[%clk 0:02:57]}  Bb6 {[%clk 0:02:51]} 10. Nbd4 {[%clk 0:02:55]}  Nc6 {[%clk 0:02:49]} 11. Be3 {[%clk 0:02:53]}  Bg4 {[%clk 0:02:45]} 12. Be2 {[%clk 0:02:26]}  Re8 {[%clk 0:02:38]} 13. Re1 {[%clk 0:02:20]}  Qd7 {[%clk 0:02:28]} 14. Qd2 {[%clk 0:02:14]}  Ne4 {[%clk 0:02:26]} 15. Qd3 {[%clk 0:02:04]}  Rac8 {[%clk 0:02:08]} 16. c3 {[%clk 0:02:02]}  Bh5 {[%clk 0:01:59]} 17. Rad1 {[%clk 0:01:54]}  Bg6 {[%clk 0:01:58]} 18. Qb5 {[%clk 0:01:53]}  Qe7 {[%clk 0:01:15]} 19. Qxd5 {[%clk 0:01:39]}  Nxd4 {[%clk 0:01:08]} 20. Bxd4 {[%clk 0:01:31]}  Bxd4 {[%clk 0:01:06]} 21. Qxd4 {[%clk 0:01:29]}  Qc5 {[%clk 0:01:02]} 22. Bd3 {[%clk 0:01:13]}  Qxd4 {[%clk 0:00:58]} 23. Nxd4 {[%clk 0:01:12]}  Nxc3 {[%clk 0:00:40]} 24. bxc3 {[%clk 0:00:39]}  Bxd3 {[%clk 0:00:33]} 25. f3 {[%clk 0:00:32]}  Bc4 {[%clk 0:00:32]} 26. a3 {[%clk 0:00:28]}  g6 {[%clk 0:00:31]} 27. Kf2 {[%clk 0:00:26]}  Rxe1 {[%clk 0:00:30]} 28. Rxe1 {[%clk 0:00:25]}  Kf8 {[%clk 0:00:30]} 29. Re5 {[%clk 0:00:24]}  b6 {[%clk 0:00:27]} 30. Ke3 {[%clk 0:00:21]}  f6 {[%clk 0:00:23]} 31. Re4 {[%clk 0:00:20]}  Kf7 {[%clk 0:00:23]} 32. Kd2 {[%clk 0:00:20]}  Bd5 {[%clk 0:00:20]} 33. Re3 {[%clk 0:00:18]}  Re8 {[%clk 0:00:19]} 34. Nb5 {[%clk 0:00:17]}  Rxe3 {[%clk 0:00:17]} 35. Kxe3 {[%clk 0:00:17]}  a6 {[%clk 0:00:17]} 36. Nc7 {[%clk 0:00:17]}  Bb7 {[%clk 0:00:17]} 37. Kd4 {[%clk 0:00:15]}  Ke7 {[%clk 0:00:18]} 38. Nd5+ {[%clk 0:00:16]}  Bxd5 {[%clk 0:00:18]} 39. Kxd5 {[%clk 0:00:16]}  Kd7 {[%clk 0:00:18]} 40. a4 {[%clk 0:00:14]}  a5 {[%clk 0:00:18]} 41. c4 {[%clk 0:00:13]}  h6 {[%clk 0:00:15]} 42. c5 {[%clk 0:00:12]}  Kc7 {[%clk 0:00:14]} 43. cxb6+ {[%clk 0:00:10]}  Kxb6 {[%clk 0:00:15]} 44. g3 {[%clk 0:00:09]}  h5 {[%clk 0:00:15]} 45. h4 {[%clk 0:00:06]}  g5 {[%clk 0:00:15]} 46. f4 {[%clk 0:00:06]}  gxh4 {[%clk 0:00:14]} 47. gxh4 {[%clk 0:00:06]}  f5 {[%clk 0:00:14]} 48. Ke5 {[%clk 0:00:06]}  Kc5 {[%clk 0:00:15]} 49. Kxf5 {[%clk 0:00:06]}  Kb4 {[%clk 0:00:16]} 50. Kg5 {[%clk 0:00:06]}  Kxa4 {[%clk 0:00:17]} 51. f5 {[%clk 0:00:06]}  Kb3 {[%clk 0:00:17]} 52. f6 {[%clk 0:00:07]}  a4 {[%clk 0:00:18]} 53. f7 {[%clk 0:00:08]}  a3 {[%clk 0:00:19]} 54. f8=Q {[%clk 0:00:06]}  a2 {[%clk 0:00:20]} 55. Qf7+ {[%clk 0:00:06]}  Kb2 {[%clk 0:00:20]} 56. Qxa2+ {[%clk 0:00:05]}  Kxa2 {[%clk 0:00:20]} 57. Kxh5 {[%clk 0:00:06]}  Kb3 {[%clk 0:00:21]} 58. Kg6 {[%clk 0:00:07]}  Kc4 {[%clk 0:00:21]} 59. h5 {[%clk 0:00:07]} 1-0


[Site "https://www.chess.com"]

[Event "Titled Tuesday Blitz April 26 Late 2022"]
[White "Tregubov, Pavel V."]
[Black "D`Arruda, Ricardo D."]
[WhiteFideId "4115341"]
[BlackFideId "100692"]
[WhiteElo "2341"]
[BlackElo "2375"]
[Result "1-0"]
[Round "05"]
[TimeControl "180+1"]
[Date "2022.04.26"]
[WhiteClock "0:00:48"]
[BlackClock "0:00:20"]

1. e4 {[%clk 0:03:00]}  c5 {[%clk 0:02:52]} 2. Nf3 {[%clk 0:03:00]}  Nc6 {[%clk 0:02:51]} 3. c3 {[%clk 0:03:00]}  Nf6 {[%clk 0:02:50]} 4. e5 {[%clk 0:03:00]}  Nd5 {[%clk 0:02:49]} 5. d4 {[%clk 0:03:00]}  cxd4 {[%clk 0:02:49]} 6. cxd4 {[%clk 0:03:00]}  d6 {[%clk 0:02:50]} 7. Bc4 {[%clk 0:02:59]}  e6 {[%clk 0:02:50]} 8. O-O {[%clk 0:02:59]}  Be7 {[%clk 0:02:49]} 9. Qe2 {[%clk 0:02:59]}  O-O {[%clk 0:02:48]} 10. Rd1 {[%clk 0:03:00]}  Bd7 {[%clk 0:02:46]} 11. Bd2 {[%clk 0:02:58]}  Rc8 {[%clk 0:02:44]} 12. Nc3 {[%clk 0:02:57]}  Nxc3 {[%clk 0:02:35]} 13. Bxc3 {[%clk 0:02:57]}  d5 {[%clk 0:02:33]} 14. Bd3 {[%clk 0:02:57]}  f5 {[%clk 0:02:21]} 15. exf6 {[%clk 0:02:56]}  Bxf6 {[%clk 0:02:20]} 16. Bb5 {[%clk 0:02:36]}  Qe8 {[%clk 0:02:05]} 17. Bxc6 {[%clk 0:02:20]}  Bxc6 {[%clk 0:02:04]} 18. Bb4 {[%clk 0:02:16]}  Bb5 {[%clk 0:01:58]} 19. Qe3 {[%clk 0:02:15]}  Rf7 {[%clk 0:01:55]} 20. Re1 {[%clk 0:02:15]}  Bd7 {[%clk 0:01:36]} 21. Bd6 {[%clk 0:02:14]}  Rc6 {[%clk 0:01:30]} 22. Be5 {[%clk 0:02:13]}  Qc8 {[%clk 0:01:30]} 23. h3 {[%clk 0:01:56]}  Be7 {[%clk 0:01:16]} 24. Rac1 {[%clk 0:01:51]}  Rxc1 {[%clk 0:01:11]} 25. Rxc1 {[%clk 0:01:50]}  Bc6 {[%clk 0:01:12]} 26. Bg3 {[%clk 0:01:44]}  Bf6 {[%clk 0:01:08]} 27. Qa3 {[%clk 0:01:20]}  a6 {[%clk 0:01:07]} 28. Qa5 {[%clk 0:01:05]}  Qd7 {[%clk 0:01:03]} 29. b3 {[%clk 0:01:02]}  Bd8 {[%clk 0:01:00]} 30. Qd2 {[%clk 0:01:00]}  Bf6 {[%clk 0:01:01]} 31. a4 {[%clk 0:00:59]}  Rf8 {[%clk 0:00:59]} 32. Be5 {[%clk 0:00:58]}  Rc8 {[%clk 0:00:58]} 33. Bxf6 {[%clk 0:00:56]}  gxf6 {[%clk 0:00:59]} 34. Qf4 {[%clk 0:00:56]}  Rf8 {[%clk 0:00:57]} 35. Re1 {[%clk 0:00:56]}  Kg7 {[%clk 0:00:48]} 36. Qg4+ {[%clk 0:00:53]}  Kf7 {[%clk 0:00:48]} 37. Qh5+ {[%clk 0:00:53]}  Kg7 {[%clk 0:00:48]} 38. Nh2 {[%clk 0:00:53]}  Re8 {[%clk 0:00:37]} 39. Ng4 {[%clk 0:00:50]}  Qe7 {[%clk 0:00:21]} 40. Qh6+ {[%clk 0:00:48]}  Kg8 {[%clk 0:00:20]} 41. Nxf6+ {[%clk 0:00:48]} 1-0


[Site "https://www.chess.com"]